[Event "Titled Tuesday Blitz November 30 2021"]
[White "Thavandiran, Shiyam"]
[Black "Barria Zuniga, Daniel"]
[WhiteFideId "2605058"]
[BlackFideId "3400816"]
[WhiteElo "2357"]
[BlackElo "2414"]
[Result "1-0"]
[Round "08"]
[TimeControl "180+1"]
[Date "2021.11.30"]
[WhiteClock "0:00:02"]
[BlackClock "0:00:01"]

1. e4 {[%clk 0:03:00]}  c5 {[%clk 0:02:57]} 2. Nf3 {[%clk 0:03:00]}  Nc6 {[%clk 0:02:57]} 3. d4 {[%clk 0:02:59]}  cxd4 {[%clk 0:02:57]} 4. Nxd4 {[%clk 0:02:59]}  Nf6 {[%clk 0:02:57]} 5. Nc3 {[%clk 0:02:59]}  e6 {[%clk 0:02:57]} 6. Ndb5 {[%clk 0:02:56]}  a6 {[%clk 0:02:56]} 7. Nd6+ {[%clk 0:02:55]}  Bxd6 {[%clk 0:02:55]} 8. Qxd6 {[%clk 0:02:56]}  b5 {[%clk 0:02:55]} 9. Bd3 {[%clk 0:02:39]}  Qe7 {[%clk 0:02:49]} 10. Bf4 {[%clk 0:02:33]}  Nh5 {[%clk 0:02:31]} 11. Qxe7+ {[%clk 0:02:31]}  Kxe7 {[%clk 0:02:32]} 12. Be3 {[%clk 0:02:21]}  d6 {[%clk 0:02:30]} 13. O-O-O {[%clk 0:02:03]}  Bd7 {[%clk 0:02:21]} 14. f3 {[%clk 0:01:44]}  Rhc8 {[%clk 0:02:18]} 15. h4 {[%clk 0:01:37]}  Ne5 {[%clk 0:02:12]} 16. g4 {[%clk 0:01:20]}  Nf6 {[%clk 0:02:07]} 17. Rh3 {[%clk 0:01:02]}  b4 {[%clk 0:01:55]} 18. Ne2 {[%clk 0:01:01]}  a5 {[%clk 0:01:47]} 19. Nd4 {[%clk 0:00:43]}  a4 {[%clk 0:01:43]} 20. g5 {[%clk 0:00:40]}  Nh5 {[%clk 0:01:35]} 21. f4 {[%clk 0:00:28]}  Nxd3+ {[%clk 0:01:02]} 22. Rxd3 {[%clk 0:00:29]}  g6 {[%clk 0:00:57]} 23. Rf3 {[%clk 0:00:26]}  e5 {[%clk 0:00:40]} 24. fxe5 {[%clk 0:00:25]}  dxe5 {[%clk 0:00:40]} 25. Ne2 {[%clk 0:00:25]}  Rc4 {[%clk 0:00:29]} 26. b3 {[%clk 0:00:12]}  axb3 {[%clk 0:00:28]} 27. axb3 {[%clk 0:00:12]}  Rxe4 {[%clk 0:00:28]} 28. Bc5+ {[%clk 0:00:13]}  Ke8 {[%clk 0:00:27]} 29. Rfe3 {[%clk 0:00:13]}  Rxe3 {[%clk 0:00:15]} 30. Rxe3 {[%clk 0:00:14]}  Ra1+ {[%clk 0:00:11]} 31. Kb2 {[%clk 0:00:14]}  Rh1 {[%clk 0:00:12]} 32. Rxe5+ {[%clk 0:00:14]}  Be6 {[%clk 0:00:12]} 33. Nd4 {[%clk 0:00:11]}  Rxh4 {[%clk 0:00:06]} 34. Nxe6 {[%clk 0:00:11]}  fxe6 {[%clk 0:00:06]} 35. Rxe6+ {[%clk 0:00:12]}  Kd7 {[%clk 0:00:07]} 36. Re7+ {[%clk 0:00:12]}  Kc6 {[%clk 0:00:07]} 37. Be3 {[%clk 0:00:11]}  Ng3 {[%clk 0:00:07]} 38. Bf2 {[%clk 0:00:11]}  Nf5 {[%clk 0:00:05]} 39. Re6+ {[%clk 0:00:08]}  Kd5 {[%clk 0:00:05]} 40. Rb6 {[%clk 0:00:07]}  Rf4 {[%clk 0:00:04]} 41. Be1 {[%clk 0:00:07]}  Ke4 {[%clk 0:00:03]} 42. Rxb4+ {[%clk 0:00:07]}  Kf3 {[%clk 0:00:04]} 43. Rxf4+ {[%clk 0:00:07]}  Kxf4 {[%clk 0:00:04]} 44. Bd2+ {[%clk 0:00:06]}  Kf3 {[%clk 0:00:04]} 45. b4 {[%clk 0:00:04]}  Ke2 {[%clk 0:00:04]} 46. Bc1 {[%clk 0:00:04]}  Kd1 {[%clk 0:00:03]} 47. c4 {[%clk 0:00:04]}  Nd6 {[%clk 0:00:03]} 48. c5 {[%clk 0:00:03]}  Nb5 {[%clk 0:00:03]} 49. Bf4 {[%clk 0:00:03]}  Ke2 {[%clk 0:00:02]} 50. Kb3 {[%clk 0:00:03]}  Kd3 {[%clk 0:00:02]} 51. c6 {[%clk 0:00:02]}  Kd4 {[%clk 0:00:02]} 52. c7 {[%clk 0:00:03]}  Nxc7 {[%clk 0:00:01]} 53. Bxc7 {[%clk 0:00:02]} 1-0


[Site "https://www.chess.com"]

[Event "Titled Tuesday Blitz November 30 2021"]
[White "Vaishali, Rameshbabu"]
[Black "Seo, Jung Min"]
[WhiteFideId "5091756"]
[BlackFideId "1734687"]
[WhiteElo "2313"]
[BlackElo "2472"]
[Result "0-1"]
[Round "08"]
[TimeControl "180+1"]
[Date "2021.11.30"]
[WhiteClock "0:00:02"]
[BlackClock "0:00:04"]

1. d4 {[%clk 0:03:00]}  Nf6 {[%clk 0:02:59]} 2. c4 {[%clk 0:03:00]}  e6 {[%clk 0:02:59]} 3. Nc3 {[%clk 0:03:01]}  Bb4 {[%clk 0:02:59]} 4. e3 {[%clk 0:03:00]}  O-O {[%clk 0:02:56]} 5. Bd2 {[%clk 0:03:00]}  d5 {[%clk 0:02:52]} 6. Nf3 {[%clk 0:03:01]}  Re8 {[%clk 0:02:51]} 7. cxd5 {[%clk 0:02:59]}  exd5 {[%clk 0:02:50]} 8. Bd3 {[%clk 0:02:59]}  c6 {[%clk 0:02:46]} 9. O-O {[%clk 0:02:53]}  Nbd7 {[%clk 0:02:45]} 10. Qc2 {[%clk 0:02:45]}  Qe7 {[%clk 0:02:39]} 11. Rfe1 {[%clk 0:02:35]}  Qf8 {[%clk 0:02:25]} 12. Ng5 {[%clk 0:02:13]}  h6 {[%clk 0:02:23]} 13. Nh3 {[%clk 0:02:13]}  Bd6 {[%clk 0:02:21]} 14. f3 {[%clk 0:02:08]}  c5 {[%clk 0:02:14]} 15. Nf2 {[%clk 0:02:04]}  a6 {[%clk 0:02:12]} 16. a4 {[%clk 0:02:01]}  b6 {[%clk 0:02:12]} 17. Bf5 {[%clk 0:01:57]}  Bb7 {[%clk 0:01:59]} 18. Rad1 {[%clk 0:01:22]}  Re7 {[%clk 0:01:58]} 19. Bc1 {[%clk 0:01:20]}  Rae8 {[%clk 0:01:57]} 20. Re2 {[%clk 0:01:01]}  g6 {[%clk 0:01:46]} 21. Bh3 {[%clk 0:00:48]}  Qg7 {[%clk 0:01:43]} 22. b3 {[%clk 0:00:46]}  Nf8 {[%clk 0:01:25]} 23. Rde1 {[%clk 0:00:38]}  Ne6 {[%clk 0:01:24]} 24. Bxe6 {[%clk 0:00:27]}  Rxe6 {[%clk 0:01:24]} 25. Kh1 {[%clk 0:00:23]}  Nh5 {[%clk 0:01:18]} 26. g4 {[%clk 0:00:21]}  Nf6 {[%clk 0:01:16]} 27. Kg2 {[%clk 0:00:18]}  Rc8 {[%clk 0:01:08]} 28. Qd3 {[%clk 0:00:15]}  Rce8 {[%clk 0:00:58]} 29. h4 {[%clk 0:00:14]}  g5 {[%clk 0:00:53]} 30. hxg5 {[%clk 0:00:12]}  hxg5 {[%clk 0:00:53]} 31. Bd2 {[%clk 0:00:11]}  Qh7 {[%clk 0:00:34]} 32. Qxh7+ {[%clk 0:00:09]}  Kxh7 {[%clk 0:00:35]} 33. Nd3 {[%clk 0:00:06]}  Kg6 {[%clk 0:00:31]} 34. Kf2 {[%clk 0:00:04]}  Rh8 {[%clk 0:00:25]} 35. Kg1 {[%clk 0:00:04]}  Rh3 {[%clk 0:00:24]} 36. Rf2 {[%clk 0:00:02]}  Bg3 {[%clk 0:00:21]} 37. Kg2 {[%clk 0:00:03]}  Bxf2 {[%clk 0:00:20]} 38. Nxf2 {[%clk 0:00:03]}  Rh8 {[%clk 0:00:20]} 39. Rd1 {[%clk 0:00:03]}  cxd4 {[%clk 0:00:19]} 40. exd4 {[%clk 0:00:04]}  Rhe8 {[%clk 0:00:16]} 41. Nh1 {[%clk 0:00:04]}  a5 {[%clk 0:00:14]} 42. Ng3 {[%clk 0:00:05]}  Ba6 {[%clk 0:00:13]} 43. Nf5 {[%clk 0:00:05]}  Bd3 {[%clk 0:00:11]} 44. Ng3 {[%clk 0:00:04]}  Bc2 {[%clk 0:00:11]} 45. Rc1 {[%clk 0:00:04]}  Bxb3 {[%clk 0:00:11]} 46. Rh1 {[%clk 0:00:04]}  Bc2 {[%clk 0:00:10]} 47. Nb5 {[%clk 0:00:03]}  Re2+ {[%clk 0:00:09]} 48. Nxe2 {[%clk 0:00:03]}  Rxe2+ {[%clk 0:00:09]} 49. Kg3 {[%clk 0:00:04]}  Rxd2 {[%clk 0:00:09]} 50. Nd6 {[%clk 0:00:03]}  Rd3 {[%clk 0:00:07]} 51. Nf5 {[%clk 0:00:02]}  Rxf3+ {[%clk 0:00:06]} 52. Kxf3 {[%clk 0:00:02]}  Be4+ {[%clk 0:00:06]} 53. Kg3 {[%clk 0:00:01]}  Bxh1 {[%clk 0:00:06]} 54. Ne7+ {[%clk 0:00:01]}  Kg7 {[%clk 0:00:06]} 55. Nc8 {[%clk 0:00:02]}  Nd7 {[%clk 0:00:05]} 56. Ne7 {[%clk 0:00:02]}  Be4 {[%clk 0:00:04]} 0-1


[Site "https://www.chess.com"]

[Event "Titled Tuesday Blitz November 30 2021"]
[White "Weetik, Vjacheslav"]
[Black "Mickiewicz, Piotr"]
[WhiteFideId "4153472"]
[BlackFideId "1114891"]
[WhiteElo "2469"]
[BlackElo "2251"]
[Result "1-0"]
[Round "08"]
[TimeControl "180+1"]
[Date "2021.11.30"]
[WhiteClock "0:00:13"]
[BlackClock "0:00:27"]

1. Nf3 {[%clk 0:02:58]}  Nf6 {[%clk 0:02:59]} 2. g3 {[%clk 0:02:59]}  g6 {[%clk 0:02:55]} 3. Bg2 {[%clk 0:02:59]}  Bg7 {[%clk 0:02:55]} 4. O-O {[%clk 0:03:00]}  O-O {[%clk 0:02:55]} 5. d4 {[%clk 0:03:00]}  d5 {[%clk 0:02:51]} 6. c4 {[%clk 0:03:00]}  c6 {[%clk 0:02:42]} 7. Qb3 {[%clk 0:03:00]}  dxc4 {[%clk 0:02:38]} 8. Qxc4 {[%clk 0:03:00]}  Be6 {[%clk 0:02:35]} 9. Qa4 {[%clk 0:03:00]}  Qb6 {[%clk 0:02:10]} 10. Nc3 {[%clk 0:02:53]}  Na6 {[%clk 0:02:06]} 11. e4 {[%clk 0:02:44]}  Qb4 {[%clk 0:02:02]} 12. Qc2 {[%clk 0:02:40]}  Rfd8 {[%clk 0:01:47]} 13. Bf4 {[%clk 0:02:34]}  h6 {[%clk 0:01:35]} 14. Rfd1 {[%clk 0:02:24]}  g5 {[%clk 0:01:32]} 15. Be5 {[%clk 0:02:20]}  Nd7 {[%clk 0:01:28]} 16. Bxg7 {[%clk 0:02:17]}  Kxg7 {[%clk 0:01:29]} 17. d5 {[%clk 0:02:12]}  Bg4 {[%clk 0:01:28]} 18. Rd4 {[%clk 0:01:26]}  Qc5 {[%clk 0:01:25]} 19. Rad1 {[%clk 0:01:18]}  Bxf3 {[%clk 0:01:23]} 20. Bxf3 {[%clk 0:01:18]}  Ne5 {[%clk 0:01:23]} 21. Be2 {[%clk 0:01:14]}  Nc7 {[%clk 0:01:09]} 22. Qb3 {[%clk 0:01:10]}  b5 {[%clk 0:00:51]} 23. Kg2 {[%clk 0:01:08]}  a5 {[%clk 0:00:49]} 24. a3 {[%clk 0:00:52]}  a4 {[%clk 0:00:43]} 25. Qc2 {[%clk 0:00:48]}  Rd6 {[%clk 0:00:40]} 26. Qd2 {[%clk 0:00:26]}  Rad8 {[%clk 0:00:39]} 27. Qe3 {[%clk 0:00:26]}  Ne6 {[%clk 0:00:36]} 28. Rb4 {[%clk 0:00:20]}  Qxe3 {[%clk 0:00:37]} 29. fxe3 {[%clk 0:00:21]}  Nc5 {[%clk 0:00:36]} 30. dxc6 {[%clk 0:00:21]}  Rxd1 {[%clk 0:00:35]} 31. Bxd1 {[%clk 0:00:21]}  Rd2+ {[%clk 0:00:34]} 32. Be2 {[%clk 0:00:19]}  g4 {[%clk 0:00:28]} 33. Rxb5 {[%clk 0:00:19]}  Ncd3 {[%clk 0:00:28]} 34. c7 {[%clk 0:00:18]}  Nc1 {[%clk 0:00:27]} 35. c8=Q {[%clk 0:00:18]}  Nxe2 {[%clk 0:00:27]} 36. Nxe2 {[%clk 0:00:13]}  Rxe2+ {[%clk 0:00:28]} 37. Kf1 {[%clk 0:00:13]}  Rd2 {[%clk 0:00:27]} 38. Rxe5 {[%clk 0:00:13]} 1-0


[Site "https://www.chess.com"]

[Event "Titled Tuesday Blitz November 30 2021"]
[White "Yilmaz, Mustafa"]
[Black "Le, Tuan Minh"]
[WhiteFideId "6302718"]
[BlackFideId "12401153"]
[WhiteElo "2518"]
[BlackElo "2450"]
[Result "1-0"]
[Round "08"]
[TimeControl "180+1"]
[Date "2021.11.30"]
[WhiteClock "0:00:08"]
[BlackClock "0:00:02"]

1. d4 {[%clk 0:03:00]}  d5 {[%clk 0:03:00]} 2. c4 {[%clk 0:03:01]}  c6 {[%clk 0:03:00]} 3. cxd5 {[%clk 0:03:01]}  cxd5 {[%clk 0:03:01]} 4. Bf4 {[%clk 0:03:01]}  Nf6 {[%clk 0:03:01]} 5. e3 {[%clk 0:03:01]}  Nc6 {[%clk 0:03:02]} 6. Bd3 {[%clk 0:03:01]}  a6 {[%clk 0:03:02]} 7. Nc3 {[%clk 0:02:53]}  Bg4 {[%clk 0:03:01]} 8. Nge2 {[%clk 0:02:53]}  e6 {[%clk 0:03:02]} 9. O-O {[%clk 0:02:52]}  Bd6 {[%clk 0:03:02]} 10. Bxd6 {[%clk 0:02:46]}  Qxd6 {[%clk 0:03:03]} 11. h3 {[%clk 0:02:47]}  Bh5 {[%clk 0:03:03]} 12. Na4 {[%clk 0:02:42]}  O-O {[%clk 0:03:00]} 13. Rc1 {[%clk 0:02:39]}  Rac8 {[%clk 0:02:59]} 14. Qb3 {[%clk 0:02:36]}  Qb4 {[%clk 0:02:48]} 15. Nf4 {[%clk 0:02:24]}  Qxb3 {[%clk 0:02:46]} 16. axb3 {[%clk 0:02:25]}  Nb4 {[%clk 0:02:45]} 17. Nb6 {[%clk 0:02:17]}  Rb8 {[%clk 0:02:16]} 18. g4 {[%clk 0:02:05]}  Nxd3 {[%clk 0:02:01]} 19. Nxd3 {[%clk 0:02:04]}  Bg6 {[%clk 0:02:02]} 20. Ne5 {[%clk 0:02:02]}  Rfd8 {[%clk 0:01:57]} 21. h4 {[%clk 0:01:53]}  h6 {[%clk 0:01:43]} 22. h5 {[%clk 0:01:41]}  Bh7 {[%clk 0:01:43]} 23. Rc7 {[%clk 0:01:40]}  Rd6 {[%clk 0:01:28]} 24. Nc8 {[%clk 0:01:15]}  Rd8 {[%clk 0:01:24]} 25. Rfc1 {[%clk 0:00:27]}  Ne8 {[%clk 0:00:26]} 26. Ne7+ {[%clk 0:00:22]}  Kf8 {[%clk 0:00:21]} 27. Rd7 {[%clk 0:00:21]}  Rxd7 {[%clk 0:00:10]} 28. Nxd7+ {[%clk 0:00:21]}  Kxe7 {[%clk 0:00:11]} 29. Nxb8 {[%clk 0:00:22]}  Kd8 {[%clk 0:00:12]} 30. f3 {[%clk 0:00:19]}  Nd6 {[%clk 0:00:12]} 31. Kg2 {[%clk 0:00:19]}  Nb5 {[%clk 0:00:08]} 32. Kg3 {[%clk 0:00:18]}  Na7 {[%clk 0:00:08]} 33. Kf4 {[%clk 0:00:17]}  Nc8 {[%clk 0:00:08]} 34. Ke5 {[%clk 0:00:16]}  Nb6 {[%clk 0:00:07]} 35. Nxa6 {[%clk 0:00:13]}  bxa6 {[%clk 0:00:06]} 36. Rc6 {[%clk 0:00:14]}  Nd7+ {[%clk 0:00:04]} 37. Kd6 {[%clk 0:00:14]}  Bd3 {[%clk 0:00:05]} 38. Rc7 {[%clk 0:00:14]}  Bb5 {[%clk 0:00:05]} 39. Ra7 {[%clk 0:00:13]}  Kc8 {[%clk 0:00:05]} 40. Ra8+ {[%clk 0:00:13]}  Nb8 {[%clk 0:00:03]} 41. Ra7 {[%clk 0:00:12]}  Nd7 {[%clk 0:00:04]} 42. Rc7+ {[%clk 0:00:13]}  Kd8 {[%clk 0:00:04]} 43. b4 {[%clk 0:00:10]}  f6 {[%clk 0:00:04]} 44. b3 {[%clk 0:00:10]}  Nb6 {[%clk 0:00:04]} 45. Rxg7 {[%clk 0:00:09]}  Ke8 {[%clk 0:00:02]} 46. Re7+ {[%clk 0:00:09]}  Kf8 {[%clk 0:00:03]} 47. Kxe6 {[%clk 0:00:10]}  Nc8 {[%clk 0:00:02]} 48. Rf7+ {[%clk 0:00:10]}  Kg8 {[%clk 0:00:02]} 49. Rxf6 {[%clk 0:00:10]}  Kg7 {[%clk 0:00:02]} 50. Rg6+ {[%clk 0:00:10]}  Kh7 {[%clk 0:00:03]} 51. Kxd5 {[%clk 0:00:10]}  Ne7+ {[%clk 0:00:03]} 52. Ke6 {[%clk 0:00:09]}  Nxg6 {[%clk 0:00:04]} 53. hxg6+ {[%clk 0:00:10]}  Kxg6 {[%clk 0:00:05]} 54. f4 {[%clk 0:00:10]}  Be2 {[%clk 0:00:05]} 55. f5+ {[%clk 0:00:09]}  Kg7 {[%clk 0:00:05]} 56. Ke7 {[%clk 0:00:08]}  Kh7 {[%clk 0:00:02]} 57. f6 {[%clk 0:00:08]} 1-0


[Site "https://www.chess.com"]

[Event "Titled Tuesday Blitz November 30 2021"]
[White "Zhigalko, Sergei"]
[Black "Sadhwani, Raunak"]
[WhiteFideId "13502956"]
[BlackFideId "35093487"]
[WhiteElo "2662"]
[BlackElo "2517"]
[Result "1/2-1/2"]
[Round "08"]
[TimeControl "180+1"]
[Date "2021.11.30"]
[WhiteClock "0:01:53"]
[BlackClock "0:02:16"]

1. e4 {[%clk 0:03:00]}  e5 {[%clk 0:03:00]} 2. Nf3 {[%clk 0:03:01]}  Nc6 {[%clk 0:03:01]} 3. Bc4 {[%clk 0:03:01]}  Nf6 {[%clk 0:02:59]} 4. d3 {[%clk 0:03:01]}  h6 {[%clk 0:02:54]} 5. O-O {[%clk 0:02:58]}  d6 {[%clk 0:02:48]} 6. c3 {[%clk 0:02:56]}  g5 {[%clk 0:02:48]} 7. Be3 {[%clk 0:02:44]}  g4 {[%clk 0:02:41]} 8. Nfd2 {[%clk 0:02:37]}  d5 {[%clk 0:02:41]} 9. exd5 {[%clk 0:02:34]}  Nxd5 {[%clk 0:02:42]} 10. Qb3 {[%clk 0:02:27]}  Na5 {[%clk 0:02:19]} 11. Qa4+ {[%clk 0:02:27]}  Nc6 {[%clk 0:02:18]} 12. Qb3 {[%clk 0:02:23]}  Na5 {[%clk 0:02:16]} 13. Qa4+ {[%clk 0:02:21]}  Nc6 {[%clk 0:02:16]} 14. Qb3 {[%clk 0:01:53]} 1/2-1/2


[Site "https://www.chess.com"]

[Event "Titled Tuesday Blitz November 30 2021"]
[White "Budrewicz, Krzysztof"]
[Black "Azarov, Sergei"]
[WhiteFideId "1127950"]
[BlackFideId "13501470"]
[WhiteElo "2242"]
[BlackElo "2494"]
[Result "0-1"]
[Round "09"]
[TimeControl "180+1"]
[Date "2021.11.30"]
[WhiteClock "0:00:24"]
[BlackClock "0:00:51"]

1. d4 {[%clk 0:03:00]}  Nf6 {[%clk 0:02:59]} 2. c4 {[%clk 0:03:00]}  e6 {[%clk 0:02:59]} 3. Nf3 {[%clk 0:03:00]}  d5 {[%clk 0:02:59]} 4. Nc3 {[%clk 0:03:00]}  Be7 {[%clk 0:02:56]} 5. Bf4 {[%clk 0:03:00]}  O-O {[%clk 0:02:56]} 6. e3 {[%clk 0:03:00]}  b6 {[%clk 0:02:56]} 7. cxd5 {[%clk 0:03:00]}  Nxd5 {[%clk 0:02:56]} 8. Nxd5 {[%clk 0:03:00]}  exd5 {[%clk 0:02:57]} 9. Be2 {[%clk 0:02:58]}  c5 {[%clk 0:02:47]} 10. O-O {[%clk 0:02:55]}  Nc6 {[%clk 0:02:44]} 11. Rc1 {[%clk 0:02:47]}  Be6 {[%clk 0:02:42]} 12. Qa4 {[%clk 0:02:41]}  Bd7 {[%clk 0:02:00]} 13. Bb5 {[%clk 0:02:26]}  Rc8 {[%clk 0:01:56]} 14. a3 {[%clk 0:02:22]}  c4 {[%clk 0:01:43]} 15. Rfd1 {[%clk 0:02:11]}  a6 {[%clk 0:01:37]} 16. Bxc6 {[%clk 0:01:44]}  Bxc6 {[%clk 0:01:37]} 17. Qc2 {[%clk 0:01:40]}  b5 {[%clk 0:01:35]} 18. Ne5 {[%clk 0:01:38]}  Be8 {[%clk 0:01:35]} 19. Qd2 {[%clk 0:01:33]}  f6 {[%clk 0:01:32]} 20. Nf3 {[%clk 0:01:33]}  Bh5 {[%clk 0:01:31]} 21. Bg3 {[%clk 0:01:26]}  a5 {[%clk 0:01:27]} 22. Re1 {[%clk 0:01:22]}  b4 {[%clk 0:01:25]} 23. Ra1 {[%clk 0:00:56]}  c3 {[%clk 0:01:19]} 24. bxc3 {[%clk 0:00:56]}  bxc3 {[%clk 0:01:19]} 25. Qc1 {[%clk 0:00:54]}  Qd7 {[%clk 0:01:17]} 26. e4 {[%clk 0:00:49]}  dxe4 {[%clk 0:01:11]} 27. Rxe4 {[%clk 0:00:50]}  Rfd8 {[%clk 0:01:06]} 28. Qe3 {[%clk 0:00:37]}  Bf8 {[%clk 0:01:04]} 29. Rc1 {[%clk 0:00:34]}  Bg6 {[%clk 0:00:59]} 30. Rh4 {[%clk 0:00:33]}  Re8 {[%clk 0:00:53]} 31. Qf4 {[%clk 0:00:24]}  Bxa3 {[%clk 0:00:51]} 0-1


[Site "https://www.chess.com"]

[Event "Titled Tuesday Blitz November 30 2021"]
[White "Danielian, Vardan"]
[Black "Wagner, Dennis"]
[WhiteFideId "13301594"]
[BlackFideId "24650684"]
[WhiteElo "2519"]
[BlackElo "2355"]
[Result "0-1"]
[Round "09"]
[TimeControl "180+1"]
[Date "2021.11.30"]
[WhiteClock "0:00:49"]
[BlackClock "0:00:56"]

1. Nf3 {[%clk 0:03:00]}  Nf6 {[%clk 0:02:55]} 2. d4 {[%clk 0:02:59]}  d5 {[%clk 0:02:55]} 3. c4 {[%clk 0:02:59]}  e6 {[%clk 0:02:52]} 4. Nc3 {[%clk 0:02:59]}  Be7 {[%clk 0:02:41]} 5. cxd5 {[%clk 0:02:59]}  exd5 {[%clk 0:02:38]} 6. Bg5 {[%clk 0:02:58]}  c6 {[%clk 0:02:35]} 7. e3 {[%clk 0:02:58]}  Bf5 {[%clk 0:02:33]} 8. Bd3 {[%clk 0:02:57]}  Bxd3 {[%clk 0:02:33]} 9. Bxf6 {[%clk 0:02:55]}  Ba6 {[%clk 0:02:04]} 10. Bxg7 {[%clk 0:02:45]}  Rg8 {[%clk 0:02:04]} 11. Be5 {[%clk 0:02:45]}  Rxg2 {[%clk 0:02:04]} 12. Qc2 {[%clk 0:02:40]}  Nd7 {[%clk 0:01:47]} 13. Bg3 {[%clk 0:02:09]}  h5 {[%clk 0:01:44]} 14. O-O-O {[%clk 0:01:54]}  h4 {[%clk 0:01:40]} 15. Bf4 {[%clk 0:01:46]}  Qa5 {[%clk 0:01:29]} 16. Rhg1 {[%clk 0:01:33]}  h3 {[%clk 0:01:15]} 17. Rxg2 {[%clk 0:01:24]}  hxg2 {[%clk 0:01:16]} 18. Rg1 {[%clk 0:01:22]}  Bf1 {[%clk 0:01:16]} 19. Nd2 {[%clk 0:01:20]}  Bb4 {[%clk 0:01:05]} 20. Nxf1 {[%clk 0:01:15]}  gxf1=Q+ {[%clk 0:01:04]} 21. Rxf1 {[%clk 0:01:15]}  Bxc3 {[%clk 0:01:04]} 22. Qxc3 {[%clk 0:00:59]}  Qxa2 {[%clk 0:00:57]} 23. Rg1 {[%clk 0:00:49]}  Qa1+ {[%clk 0:00:56]} 0-1


[Site "https://www.chess.com"]

[Event "Titled Tuesday Blitz November 30 2021"]
[White "Deac, Bogdan-Daniel"]
[Black "Kobalia, Mikhail"]
[WhiteFideId "1226380"]
[BlackFideId "4119150"]
[WhiteElo "2605"]
[BlackElo "2543"]
[Result "1-0"]
[Round "09"]
[TimeControl "180+1"]
[Date "2021.11.30"]
[WhiteClock "0:00:04"]
[BlackClock "0:00:01"]

1. e4 {[%clk 0:03:00]}  c6 {[%clk 0:02:59]} 2. Nf3 {[%clk 0:03:00]}  d5 {[%clk 0:02:59]} 3. d3 {[%clk 0:03:01]}  Bg4 {[%clk 0:02:56]} 4. h3 {[%clk 0:03:01]}  Bh5 {[%clk 0:02:56]} 5. Qe2 {[%clk 0:03:01]}  e6 {[%clk 0:02:55]} 6. g4 {[%clk 0:02:59]}  Bg6 {[%clk 0:02:55]} 7. h4 {[%clk 0:02:59]}  h5 {[%clk 0:02:55]} 8. Ne5 {[%clk 0:02:48]}  Bh7 {[%clk 0:02:29]} 9. g5 {[%clk 0:02:40]}  dxe4 {[%clk 0:02:28]} 10. Nc3 {[%clk 0:02:39]}  exd3 {[%clk 0:02:27]} 11. cxd3 {[%clk 0:02:39]}  Nd7 {[%clk 0:02:26]} 12. g6 {[%clk 0:01:44]}  Bxg6 {[%clk 0:02:22]} 13. Nxg6 {[%clk 0:01:43]}  fxg6 {[%clk 0:02:23]} 14. Bh3 {[%clk 0:01:43]}  Bb4 {[%clk 0:02:17]} 15. Qe4 {[%clk 0:01:25]}  Bxc3+ {[%clk 0:02:16]} 16. bxc3 {[%clk 0:01:25]}  Qf6 {[%clk 0:02:14]} 17. d4 {[%clk 0:01:19]}  Nf8 {[%clk 0:00:52]} 18. Bg5 {[%clk 0:00:50]}  Qf7 {[%clk 0:00:52]} 19. O-O {[%clk 0:00:49]}  Ne7 {[%clk 0:00:51]} 20. c4 {[%clk 0:00:41]}  O-O-O {[%clk 0:00:36]} 21. Qe5 {[%clk 0:00:33]}  Qf3 {[%clk 0:00:22]} 22. Bg2 {[%clk 0:00:14]}  Qf7 {[%clk 0:00:19]} 23. Bf4 {[%clk 0:00:11]}  Kd7 {[%clk 0:00:17]} 24. Rad1 {[%clk 0:00:11]}  Qf5 {[%clk 0:00:16]} 25. Qc7+ {[%clk 0:00:08]}  Ke8 {[%clk 0:00:16]} 26. Bg5 {[%clk 0:00:08]}  Rd7 {[%clk 0:00:16]} 27. Qb8+ {[%clk 0:00:08]}  Kf7 {[%clk 0:00:16]} 28. Rfe1 {[%clk 0:00:08]}  Rg8 {[%clk 0:00:15]} 29. Qg3 {[%clk 0:00:04]}  Nh7 {[%clk 0:00:15]} 30. Re5 {[%clk 0:00:04]}  Qc2 {[%clk 0:00:14]} 31. Rde1 {[%clk 0:00:03]}  Nxg5 {[%clk 0:00:13]} 32. Qxg5 {[%clk 0:00:03]}  Nf5 {[%clk 0:00:13]} 33. Rxe6 {[%clk 0:00:03]}  Nh6 {[%clk 0:00:01]} 34. Re7+ {[%clk 0:00:04]} 1-0


[Site "https://www.chess.com"]

[Event "Titled Tuesday Blitz November 30 2021"]
[White "Donchenko, Alexander"]
[Black "Matinian, Nikita"]
[WhiteFideId "24603295"]
[BlackFideId "24129100"]
[WhiteElo "2490"]
[BlackElo "2422"]
[Result "1-0"]
[Round "09"]
[TimeControl "180+1"]
[Date "2021.11.30"]
[WhiteClock "0:00:05"]
[BlackClock "0:00:01"]

1. e4 {[%clk 0:03:00]}  e5 {[%clk 0:02:59]} 2. Nf3 {[%clk 0:03:01]}  Nc6 {[%clk 0:02:58]} 3. Bb5 {[%clk 0:03:01]}  a6 {[%clk 0:02:58]} 4. Ba4 {[%clk 0:03:01]}  Nf6 {[%clk 0:02:58]} 5. O-O {[%clk 0:03:01]}  Be7 {[%clk 0:02:57]} 6. d3 {[%clk 0:03:01]}  d6 {[%clk 0:02:56]} 7. c4 {[%clk 0:03:00]}  O-O {[%clk 0:02:54]} 8. Nc3 {[%clk 0:02:57]}  Bg4 {[%clk 0:02:52]} 9. h3 {[%clk 0:02:56]}  Bxf3 {[%clk 0:02:52]} 10. Qxf3 {[%clk 0:02:56]}  Nd4 {[%clk 0:02:53]} 11. Qd1 {[%clk 0:02:54]}  c6 {[%clk 0:02:53]} 12. Qd2 {[%clk 0:02:51]}  Nh5 {[%clk 0:02:45]} 13. Ne2 {[%clk 0:02:40]}  Nxe2+ {[%clk 0:02:38]} 14. Qxe2 {[%clk 0:02:41]}  g6 {[%clk 0:02:38]} 15. Bd2 {[%clk 0:02:34]}  Bg5 {[%clk 0:02:37]} 16. Bc3 {[%clk 0:02:34]}  b5 {[%clk 0:02:22]} 17. Bb3 {[%clk 0:02:31]}  c5 {[%clk 0:02:22]} 18. cxb5 {[%clk 0:02:24]}  axb5 {[%clk 0:02:23]} 19. a4 {[%clk 0:02:13]}  b4 {[%clk 0:02:23]} 20. Bd2 {[%clk 0:02:09]}  Bxd2 {[%clk 0:02:22]} 21. Qxd2 {[%clk 0:02:10]}  Nf4 {[%clk 0:02:20]} 22. Kh2 {[%clk 0:02:10]}  Qg5 {[%clk 0:02:15]} 23. g3 {[%clk 0:01:52]}  Nxh3 {[%clk 0:02:14]} 24. f4 {[%clk 0:01:30]}  exf4 {[%clk 0:01:53]} 25. gxf4 {[%clk 0:01:31]}  Qh4 {[%clk 0:01:52]} 26. Qe1 {[%clk 0:01:31]}  Qh6 {[%clk 0:01:25]} 27. Kg3 {[%clk 0:01:24]}  Kh8 {[%clk 0:01:20]} 28. Rh1 {[%clk 0:01:08]}  Qxf4+ {[%clk 0:01:19]} 29. Kxh3 {[%clk 0:01:08]}  f5 {[%clk 0:01:13]} 30. Qg3 {[%clk 0:01:04]}  Qh6+ {[%clk 0:01:00]} 31. Qh4 {[%clk 0:01:03]}  Qe3+ {[%clk 0:00:53]} 32. Kg2 {[%clk 0:01:03]}  Qd2+ {[%clk 0:00:46]} 33. Kg1 {[%clk 0:00:56]}  Ra7 {[%clk 0:00:41]} 34. Rf1 {[%clk 0:00:49]}  Qxd3 {[%clk 0:00:39]} 35. Rh3 {[%clk 0:00:44]}  Qd4+ {[%clk 0:00:37]} 36. Kh1 {[%clk 0:00:44]}  c4 {[%clk 0:00:20]} 37. Bd1 {[%clk 0:00:30]}  f4 {[%clk 0:00:07]} 38. Qh6 {[%clk 0:00:27]}  Raf7 {[%clk 0:00:07]} 39. Qxg6 {[%clk 0:00:26]}  Qxb2 {[%clk 0:00:05]} 40. Qxd6 {[%clk 0:00:18]}  b3 {[%clk 0:00:03]} 41. Bh5 {[%clk 0:00:13]}  Qf6 {[%clk 0:00:03]} 42. Qd5 {[%clk 0:00:10]}  Re7 {[%clk 0:00:02]} 43. Qxc4 {[%clk 0:00:09]}  b2 {[%clk 0:00:01]} 44. Qb4 {[%clk 0:00:07]}  Re5 {[%clk 0:00:01]} 45. Bg4 {[%clk 0:00:06]}  Qg7 {[%clk 0:00:01]} 46. Bf5 {[%clk 0:00:06]}  Rfe8 {[%clk 0:00:01]} 47. Qxb2 {[%clk 0:00:05]} 1-0


[Site "https://www.chess.com"]